bitfinex/quotes_SOLUSD_20250602
["timestamp","ask_amount","ask_price","bid_price","bid_amount"]
[1748871716438,48.2484373,153.52,153.48,26.0]
[1748871716777,10.2024883,153.52,153.48,64.045949]
[1748871716983,48.2484373,153.52,153.48,64.045949]
[1748871717279,1.5755,153.53,153.48,26.0]
[1748871717280,48.24866837,153.51,153.48,26.0]
[1748871717477,44.56026155,153.51,153.48,26.0]
[1748871717706,48.24866837,153.51,153.48,26.0]
[1748871717889,44.56026155,153.51,153.48,26.0]
[1748871718089,48.24866837,153.51,153.48,26.0]
[1748871718302,48.24830744,153.52,153.48,26.0]
[1748871718483,41.73435582,153.51,153.48,26.0]
[1748871718683,3.68840682,153.51,153.48,64.045949]
[1748871718882,44.55905593,153.54,153.5,38.045949]
[1748871719191,3.70399069,153.53,153.5,38.045949]
[1748871719391,48.26335756,153.53,153.49,38.045949]
[1748871719581,3.70399069,153.52,153.49,38.045949]
[1748871720311,41.74993969,153.52,153.48,69.14]
[1748871720807,41.75334411,153.51,153.48,26.0]
[1748871721112,41.75334411,153.52,153.48,26.0]
[1748871721419,48.26724864,153.52,153.48,26.0]
[1748871721603,3.70739511,153.51,153.48,64.045949]
[1748871721809,3.70739511,153.51,153.48,26.0]
[1748871721989,3.70946949,153.51,153.48,64.045949]
[1748871722189,3.70946949,153.51,153.5,38.045949]
[1748871722390,3.70915678,153.53,153.49,43.1]
[1748871722707,49.18855982,153.55,153.49,43.1]
[1748871722708,3.71209715,153.52,153.5,38.045949]
[1748871722884,3.71209715,153.52,153.49,43.1]
[1748871723310,3.71209715,153.52,153.49,49.61500984]
[1748871723610,3.71209715,153.51,153.49,49.61500984]
[1748871723808,38.045949,153.52,153.49,43.1]
[1748871724112,3.71397808,153.51,153.48,107.125949]
[1748871724291,3.71397808,153.51,153.5,38.045949]
[1748871724783,3.71397808,153.51,153.48,75.59534794]
[1748871724784,3.71560662,153.51,153.48,75.59534794]
[1748871724987,4.64012144,153.54,153.5,38.045949]
[1748871725198,3.71560627,153.53,153.51,81.145949]
[1748871725506,41.76155527,153.52,153.47,26.0]
[1748871725814,38.045949,153.49,153.46,43.14]
[1748871725996,3.71560627,153.48,153.46,107.185949]
[1748871726187,4.64012144,153.51,153.47,38.045949]
[1748871726387,3.71706756,153.5,153.46,69.14]
[1748871726709,3.71706756,153.49,153.48,38.045949]
[1748871727097,3.71706756,153.49,153.46,69.14]
[1748871727300,4.64750416,153.52,153.48,38.045949]
[1748871727605,3.7180039,153.51,153.49,43.12]
[1748871727809,3.7180039,153.5,153.49,43.12]
[1748871729198,3.7180039,153.5,153.46,26.0]
[1748871729398,3.7180039,153.49,153.47,43.16]
[1748871729597,44.56063226,153.5,153.46,69.16]
[1748871729798,3.72243269,153.49,153.46,69.16]
[1748871730004,3.72243269,153.48,153.46,69.16]
[1748871730295,38.045949,153.48,153.46,26.0]
[1748871730511,41.76832967,153.47,153.39,12.3]
[1748871730711,38.045949,153.41,153.32,18.3767]
[1748871730916,38.045949,153.39,153.35,38.9369368]
[1748871731116,38.045949,153.39,153.35,108.1169368]
[1748871731295,38.045949,153.39,153.35,0.8909878]
[1748871731296,38.045949,153.36,153.35,0.8909878]
[1748871731497,41.77142903,153.36,153.35,0.8909878]
[1748871731696,41.77142903,153.36,153.31,26.0]
[1748871732010,1.6355,153.38,153.25,12.3]
[1748871732011,38.045949,153.33,153.29,81.205949]
[1748871732209,41.77142903,153.32,153.28,43.16]
[1748871732520,3.72548003,153.31,153.28,107.205949]
[1748871732721,3.7157668,153.3,153.28,81.205949]
[1748871732895,38.045949,153.32,153.28,81.225949]
[1748871733094,3.71585086,153.31,153.28,81.225949]
[1748871733403,3.71578953,153.3,153.28,81.225949]
[1748871733713,49.21986664,153.33,153.25,12.3]
[1748871733714,38.045949,153.31,153.25,12.3]
[1748871733925,38.045949,153.31,153.28,43.18]
[1748871733926,3.71124071,153.3,153.28,43.18]
[1748871734122,38.045949,153.31,153.27,81.245949]
[1748871734318,3.71133341,153.3,153.28,38.045949]
[1748871734523,49.21986664,153.33,153.29,38.045949]
[1748871734821,41.75251893,153.32,153.27,69.2]
[1748871735025,3.70656993,153.31,153.28,43.2]
[1748871735320,49.20301329,153.33,153.29,38.045949]
[1748871735494,3.70743066,153.32,153.29,38.045949]
[1748871735699,3.70743066,153.31,153.29,38.045949]
[1748871735902,49.20239886,153.34,153.29,38.045949]
[1748871736095,41.75038212,153.33,153.28,43.2]
[1748871736315,3.70443312,153.32,153.28,43.2]
[1748871736515,3.70443312,153.31,153.28,43.2]
[1748871736721,3.70443312,153.3,153.28,43.2]
[1748871737026,41.74835886,153.29,153.25,64.045949]
[1748871737233,41.74835886,153.28,153.22,12.3]
[1748871737404,48.27279286,153.27,153.23,38.045949]
[1748871737739,6.52368187,153.29,153.25,38.045949]
[1748871738035,3.69825523,153.28,153.26,38.045949]
[1748871738331,3.69825523,153.27,153.25,64.045949]
[1748871738531,3.69825523,153.28,153.25,26.0]
[1748871738702,8.11227634,153.3,153.25,64.045949]
[1748871738903,3.69529898,153.29,153.26,38.045949]
[1748871739133,3.69529898,153.28,153.25,69.24]
[1748871739315,3.69529898,153.3,153.27,38.045949]
[1748871739518,42.6808324,153.33,153.28,38.045949]
[1748871739826,3.69320923,153.32,153.28,38.045949]
[1748871739999,3.69320923,153.31,153.27,38.045949]
[1748871740201,3.69320923,153.3,153.25,75.76516845]
[1748871740398,56.69559786,153.27,153.16,16.32204228]
[1748871740602,56.69559786,153.27,153.13,2.95879136]
[1748871740603,38.045949,153.19,153.13,2.95879136]
[1748871740911,3.69386668,153.18,153.13,2.95879136]
[1748871741111,38.045949,153.14,153.13,2.95879136]
[1748871741435,44.57592157,153.14,153.13,2.95879136]
[1748871741940,38.045949,153.14,153.13,2.95879136]
[1748871742240,3.69423027,153.14,153.13,2.95879136]
[1748871742437,3.68614856,153.14,153.13,2.95879136]
[1748871742631,44.57561377,153.15,153.13,2.95879136]
[1748871742813,6.52966477,153.15,153.13,2.95879136]
[1748871743019,3.68614856,153.16,153.13,41.00474036]
[1748871743020,10.2152901,153.16,153.13,41.00474036]
[1748871743204,6.52916393,153.16,153.13,41.00474036]
[1748871743410,6.5286936,153.17,153.13,2.95879136]
[1748871743616,60.97629011,153.16,153.13,2.95879136]
[1748871743833,6.5286936,153.17,153.13,2.95879136]
[1748871744004,60.97629011,153.16,153.13,2.95879136]
[1748871744201,60.97629011,153.15,153.13,2.95879136]
[1748871744400,60.97629011,153.14,153.13,2.95879136]
[1748871744805,64.64891545,153.14,153.13,2.95879136]
[1748871745017,60.97629011,153.14,153.13,2.95879136]
[1748871745530,67.50626268,153.14,153.13,2.95879136]
[1748871745918,70.73335582,153.14,153.13,2.95879136]
[1748871746331,128.50915582,153.14,153.13,2.95879136]
[1748871746514,132.17254745,153.14,153.13,2.95879136]
[1748871747217,132.16692378,153.14,153.13,2.95879136]
[1748871747531,14.94413367,153.14,153.13,2.95879136]
[1748871747721,3.22709314,153.14,153.13,2.95879136]
[1748871747916,3.65776796,153.14,153.13,2.95879136]
[1748871748124,6.52961074,153.15,153.13,2.95879136]
[1748871748328,10.18696069,153.16,153.13,2.95879136]
[1748871748623,67.50548284,153.16,153.13,2.95879136]
[1748871748929,67.50468353,153.18,153.13,46.17879136]
[1748871749135,60.97629011,153.17,153.13,46.17879136]
[1748871749332,1.5958,153.19,153.13,107.15508147]
[1748871749505,6.52754201,153.2,153.16,60.97629011]
[1748871749704,67.50383212,153.2,153.16,60.97629011]
[1748871749909,60.97629011,153.19,153.16,43.22]
[1748871750335,60.97629011,153.18,153.16,43.22]
[1748871750534,60.97629011,153.19,153.16,43.22]
[1748871751030,60.97629011,153.18,153.16,43.22]
[1748871751236,60.97629011,153.17,153.13,28.95879136]
[1748871751733,67.50511274,153.17,153.13,63.93508147]
[1748871751937,67.50466659,153.18,153.14,60.97629011]
[1748871752307,67.50466659,153.18,153.13,2.95879136]
[1748871752532,60.97629011,153.17,153.13,2.95879136]
[1748871752734,60.97629011,153.16,153.13,2.95879136]
[1748871752932,60.97629011,153.17,153.13,63.93508147]
[1748871753232,22.84904497,153.18,153.13,2.95879136]
[1748871753535,60.97629011,153.15,153.13,2.95879136]
[1748871753920,67.5057777,153.16,153.13,2.95879136]
[1748871754324,16.32066849,153.18,153.14,60.97629011]
[1748871754325,60.97629011,153.18,153.14,60.97629011]
[1748871754517,6.52784124,153.19,153.15,60.97629011]
[1748871754716,60.97629011,153.18,153.14,60.97629011]
[1748871755232,60.97629011,153.17,153.13,107.17508147]
[1748871755431,60.97629011,153.18,153.14,60.97629011]
[1748871755723,67.5049037,153.18,153.14,60.97629011]
[1748871755939,60.97629011,153.18,153.14,60.97629011]
[1748871756251,67.50462312,153.18,153.14,60.97629011]
[1748871756418,60.97629011,153.17,153.13,46.19879136]
[1748871756818,60.97629011,153.16,153.13,2.95879136]
[1748871757015,60.97629011,153.14,153.13,2.95879136]
[1748871757818,67.50626268,153.14,153.13,2.95879136]
[1748871759222,60.97629011,153.15,153.13,2.95879136]
[1748871759423,7.87745606,153.2,153.14,130.25629011]
[1748871759619,80.95109361,153.23,153.18,60.97629011]
[1748871759827,79.28494478,153.23,153.18,60.97629011]
[1748871760154,67.5008823,153.27,153.22,60.97629011]
[1748871760326,60.97629011,153.25,153.21,104.25629011]
[1748871760837,3.64129213,153.26,153.21,104.25629011]
[1748871761046,60.97629011,153.26,153.21,104.25629011]
[1748871761237,60.97629011,153.25,153.21,104.25629011]
[1748871762251,60.97629011,153.26,153.22,60.97629011]
[1748871762451,64.62053591,153.27,153.23,60.97629011]
[1748871762659,60.97629011,153.27,153.23,60.97629011]
[1748871763128,64.62248466,153.27,153.23,60.97629011]
[1748871763542,60.97629011,153.26,153.23,43.22]
[1748871763854,64.62474147,153.27,153.23,110.72242381]
[1748871764069,211.24,153.33,153.23,110.72242381]
[1748871764070,60.97629011,153.3,153.26,60.97629011]
[1748871764350,64.6239154,153.3,153.25,104.19629011]
[1748871764551,60.97629011,153.29,153.25,43.22]
[1748871764739,60.97629011,153.27,153.25,43.22]
[1748871765049,60.97629011,153.26,153.22,43.22]
[1748871765237,6.89512071,153.29,153.21,38.34]
[1748871765238,60.97629011,153.23,153.21,38.34]
[1748871765439,60.97629011,153.23,153.21,81.56]
[1748871765740,60.97629011,153.22,153.21,12.34]
[1748871765931,3.65499789,153.23,153.21,12.34]
[1748871766129,60.97629011,153.22,153.21,12.34]
[1748871766441,60.97629011,153.25,153.21,116.51629011]
[1748871766934,60.97629011,153.24,153.21,55.54]
[1748871767154,66.05402922,153.28,153.21,55.54]
[1748871767334,60.97629011,153.25,153.21,55.54]
[1748871767652,3.65694292,153.24,153.21,55.54]
[1748871767839,67.50176906,153.25,153.21,55.54]
[1748871768046,60.97629011,153.22,153.21,12.34]
[1748871768363,64.63711717,153.22,153.19,26.0]
[1748871768548,60.97629011,153.2,153.16,12.34]
[1748871768858,4.58230915,153.23,153.17,43.28]
[1748871769160,60.97629011,153.18,153.13,2.95879136]
[1748871769350,50.0,153.21,153.13,2.95879136]
[1748871769351,60.97629011,153.15,153.13,2.95879136]
[1748871769540,60.97629011,153.16,153.13,2.95879136]
[1748871769934,3.6712913,153.15,153.13,2.95879136]
[1748871770150,60.97629011,153.16,153.13,2.95879136]
[1748871770358,3.67136568,153.15,153.13,2.95879136]
[1748871770553,3.67136568,153.14,153.13,2.95879136]
[1748871771142,3.67136568,153.14,153.13,63.93508147]
[1748871771343,60.97629011,153.17,153.13,63.93508147]
[1748871771557,3.68144509,153.16,153.14,104.27629011]
[1748871771751,6.52780983,153.2,153.14,104.27629011]
[1748871771752,72.08694865,153.18,153.15,12.34]
[1748871771955,64.65748547,153.17,153.15,12.34]
[1748871772264,3.68119536,153.16,153.15,12.34]
[1748871772841,69.27239127,153.16,153.15,12.34]
[1748871773168,64.66344618,153.16,153.13,2.95879136]
[1748871773339,65.58577236,153.14,153.13,2.95879136]
[1748871773539,71.19341875,153.14,153.13,2.95879136]
[1748871775445,71.19341875,153.14,153.1,12.34]
[1748871775446,3.68715607,153.14,153.1,12.34]
[1748871775645,4.63805628,153.12,153.1,62.15155622]
[1748871775847,4.63805628,153.13,153.11,60.97629011]
[1748871776050,4.63805628,153.13,153.1,62.15155622]
[1748871776051,3.71020399,153.12,153.1,62.15155622]
[1748871776239,3.71020399,153.11,153.1,88.15155622]
[1748871776641,3.71020352,153.11,153.1,88.15155622]
[1748871777146,3.71020352,153.11,153.1,149.12784633]
[1748871779546,3.71020352,153.11,153.1,149.02784633]
[1748871780479,7.42874396,153.11,153.1,149.02784633]
[1748871780687,3.71854044,153.11,153.1,149.02784633]
[1748871781003,3.71854044,153.11,153.1,123.02784633]
[1748871781185,4.64817555,153.17,153.13,26.0]
[1748871781366,4.64817555,153.19,153.16,60.97629011]
[1748871781567,8.37018635,153.18,153.16,73.31629011]
[1748871781784,3.7220108,153.17,153.16,73.31629011]
[1748871782275,3.7220108,153.17,153.16,99.31629011]
[1748871782465,159.58229564,153.24,153.16,99.31629011]
[1748871782466,60.97629011,153.2,153.16,26.0]
[1748871782667,69.3469478,153.19,153.16,26.0]
[1748871782868,4.64817555,153.17,153.16,26.0]
[1748871783087,8.37065769,153.17,153.16,26.0]
[1748871783283,3.72248214,153.17,153.16,26.0]
[1748871783983,3.72248214,153.17,153.16,136.68540998]
[1748871784183,4.64817555,153.21,153.16,136.68540998]
[1748871784391,3.72441218,153.2,153.17,60.97629011]
[1748871784687,3.72441218,153.19,153.17,12.34]
[1748871784890,3.7269951,153.18,153.17,73.31629011]
[1748871785090,3.7269951,153.18,153.17,79.84498371]
[1748871785588,4.65874388,153.22,153.17,79.84498371]
[1748871785790,3.72949872,153.21,153.19,60.97629011]
[1748871786087,3.72949872,153.2,153.19,60.97629011]
[1748871786289,3.72949872,153.2,153.18,104.11629011]
[1748871786591,3.72949872,153.19,153.18,104.11629011]
[1748871786766,3.72949872,153.19,153.18,43.14]
[1748871787489,3.72949872,153.19,153.18,110.6445575]
[1748871787673,72.16144196,153.23,153.18,104.11629011]
[1748871787992,3.72941286,153.22,153.18,104.11629011]
[1748871788205,3.72941286,153.21,153.18,104.11629011]
[1748871788373,67.5024701,153.23,153.18,104.11629011]
[1748871788691,3.72908258,153.22,153.18,104.11629011]
[1748871788889,3.72908258,153.21,153.19,60.97629011]
[1748871789090,60.97629011,153.23,153.19,60.97629011]
[1748871789395,3.72894045,153.22,153.18,104.11629011]
[1748871789601,8.0474648,153.24,153.18,110.64444475]
[1748871789804,60.97629011,153.22,153.18,110.64452442]
[1748871790009,60.97629011,153.23,153.18,110.64452442]
[1748871790183,60.97629011,153.21,153.17,12.34]
[1748871790374,3.72944299,153.2,153.18,60.97629011]
[1748871790574,64.7057331,153.23,153.18,60.97629011]
[1748871790797,3.72944299,153.22,153.18,60.97629011]
[1748871790996,3.72944299,153.22,153.18,67.50452707]
[1748871791199,38.33785921,153.23,153.19,81.35785921]
[1748871791381,3.7291037,153.22,153.19,81.35785921]
[1748871791584,38.33785921,153.22,153.19,43.02]
[1748871792295,38.33785921,153.23,153.19,81.35785921]
[1748871792494,1.5217,153.24,153.19,81.35785921]
[1748871792793,42.06918793,153.23,153.19,81.35785921]
[1748871792997,3.73132872,153.22,153.19,81.35785921]
[1748871793373,3.73181289,153.22,153.19,87.88560884]
[1748871793570,38.33785921,153.23,153.19,87.88560884]
[1748871794198,16.44676509,153.25,153.2,38.33785921]
[1748871794401,3.73176345,153.24,153.2,38.33785921]
[1748871794701,3.73176345,153.23,153.2,38.33785921]
[1748871794899,3.73176345,153.24,153.2,38.33785921]
[1748871795193,50.12041887,153.25,153.2,44.86492082]
[1748871795395,3.73154875,153.24,153.21,38.33785921]
[1748871795700,56.64571965,153.25,153.21,38.33785921]
[1748871795995,3.73130991,153.24,153.21,38.33785921]
[1748871796184,50.12041887,153.25,153.21,38.33785921]
[1748871797006,11.78255966,153.25,153.21,38.33785921]
[1748871797226,54.85112277,153.29,153.24,44.86357051]
[1748871797227,4.85112277,153.29,153.24,44.86357051]
[1748871797376,3.72908603,153.29,153.26,38.33785921]
[1748871797577,3.72908603,153.3,153.26,38.33785921]
[1748871797770,42.06694524,153.31,153.25,38.34]
[1748871797992,3.72908603,153.3,153.27,38.33785921]
[1748871798198,38.33785921,153.3,153.27,42.86]
[1748871798382,38.33785921,153.31,153.27,81.19785921]
[1748871798772,3.72652378,153.31,153.27,81.19785921]
[1748871799182,38.33785921,153.31,153.27,81.19785921]
[1748871799372,38.33785921,153.31,153.27,87.72221375]
[1748871799373,42.06438299,153.31,153.27,87.72221375]
[1748871799573,38.33785921,153.31,153.27,87.72221375]
[1748871800396,42.06438299,153.32,153.27,87.72221375]
[1748871800609,38.33785921,153.31,153.27,87.72221375]
[1748871802835,38.33785921,153.31,153.25,38.34]
[1748871803142,38.33785921,153.28,153.25,38.34]
[1748871803428,38.33785921,153.26,153.22,93.96]
[1748871803719,38.33785921,153.23,153.22,93.96]
[1748871804233,38.33785921,153.23,153.13,22.71714971]
[1748871804537,3.72319319,153.25,153.17,12.06]
[1748871804705,38.33785921,153.21,153.17,93.15785921]
[1748871804903,38.33785921,153.2,153.17,54.82]
[1748871805107,38.33785921,153.2,153.17,54.8]
[1748871805413,38.33785921,153.21,153.17,80.8]
[1748871805607,38.33785921,153.22,153.18,38.33785921]
[1748871805819,38.33785921,153.23,153.18,38.33785921]
[1748871805999,38.33785921,153.23,153.19,38.33785921]
[1748871806506,38.33785921,153.22,153.18,38.33785921]
[1748871806706,38.33785921,153.21,153.17,125.66646539]
[1748871806906,38.33785921,153.21,153.18,42.7]
[1748871807320,38.33785921,153.19,153.17,38.06]
[1748871807706,38.33785921,153.19,153.17,80.74]
[1748871807897,38.33785921,153.18,153.14,6.52992449]
[1748871808101,38.33785921,153.18,153.15,80.74]
[1748871808411,38.33785921,153.19,153.16,42.74]
[1748871808606,38.33785921,153.19,153.15,76.39785921]
[1748871808812,38.33785921,153.19,153.16,42.74]
[1748871809005,38.33785921,153.19,153.15,87.32953802]
[1748871809210,38.33785921,153.19,153.15,125.66739723]
[1748871809599,38.33785921,153.19,153.16,42.72]
[1748871809804,38.33785921,153.19,153.15,82.92739723]
[1748871810014,38.33785921,153.19,153.16,42.7]
[1748871810306,38.33785921,153.2,153.16,6.52908429]
[1748871810519,6.52711148,153.21,153.15,26.0]
[1748871810520,38.33785921,153.17,153.15,26.0]
[1748871810745,38.33785921,153.16,153.15,26.0]
[1748871811537,38.33785921,153.16,153.13,12.08]
[1748871811827,38.33785921,153.15,153.13,12.08]
[1748871812400,8.13837132,153.18,153.13,12.08]
[1748871812625,38.33785921,153.16,153.13,12.08]
[1748871815098,38.33785921,153.17,153.13,50.41785921]
[1748871815621,38.33785921,153.16,153.13,12.08]
[1748871816732,44.86707304,153.16,153.13,12.08]
[1748871816906,6.52921383,153.16,153.13,12.08]
[1748871817328,44.86707304,153.16,153.13,12.08]
[1748871817626,38.33785921,153.14,153.1,64.33785921]
[1748871817819,38.33785921,153.15,153.11,38.33785921]
[1748871818225,26.57689545,153.17,153.11,38.33785921]
[1748871818536,6.52928257,153.16,153.13,38.33785921]
[1748871818835,6.52928257,153.16,153.12,38.33785921]
[1748871819533,44.86714178,153.16,153.12,38.33785921]
[1748871820507,38.33785921,153.15,153.11,50.41785921]
[1748871820706,6.52928257,153.16,153.11,12.08]
[1748871820707,38.33785921,153.12,153.11,12.08]
[1748871820931,3.72637564,153.15,153.09,8.33333333]
[1748871821140,26.57845789,153.16,153.09,8.33333333]
[1748871821345,26.57891718,153.16,153.09,8.33333333]
[1748871821629,26.57891718,153.16,153.09,8.81552883]
[1748871821830,10.2561175,153.16,153.09,47.15338804]
[1748871822156,10.25602807,153.16,153.12,38.33785921]
[1748871822509,48.59351547,153.17,153.13,38.33785921]
[1748871822717,44.86668054,153.17,153.13,38.33785921]
[1748871823011,3.72683493,153.19,153.14,68.62]
[1748871823210,42.06469414,153.21,153.17,38.33785921]
[1748871823644,11.18478094,153.23,153.2,38.33785921]
[1748871823806,4.65854366,153.23,153.2,38.33785921]
[1748871824322,44.86401565,153.23,153.19,38.33785921]
[1748871825217,38.33785921,153.23,153.19,38.33785921]
[1748871825418,38.33785921,153.24,153.2,38.33785921]
[1748871825619,48.58914744,153.25,153.21,38.33785921]
[1748871825825,38.33785921,153.25,153.21,38.33785921]
[1748871826126,53.24503288,153.29,153.24,38.33785921]
[1748871826341,38.33785921,153.28,153.24,38.33785921]
[1748871826738,10.24981955,153.29,153.23,80.95785921]
[1748871826951,38.33785921,153.28,153.23,80.95785921]
[1748871827125,38.33785921,153.27,153.23,42.62]
[1748871827526,44.86226254,153.28,153.24,38.33785921]
[1748871828148,38.33785921,153.27,153.23,42.62]
[1748871828931,6.52440333,153.28,153.23,42.62]
[1748871829149,38.33785921,153.26,153.23,42.62]
[1748871829322,44.86314469,153.25,153.2,26.0]
[1748871829528,38.33785921,153.23,153.2,68.56]
[1748871829857,38.33785921,153.24,153.2,68.56]
[1748871830052,38.33785921,153.24,153.2,26.0]
[1748871830523,6.52528548,153.25,153.2,26.0]
[1748871830727,38.33785921,153.24,153.2,26.0]
[1748871831120,38.33785921,153.24,153.2,68.54]
[1748871831323,44.86387669,153.24,153.2,68.54]
[1748871831920,38.33785921,153.23,153.2,68.54]
[1748871832328,44.86387669,153.24,153.2,106.87785921]
[1748871832818,6.52539628,153.25,153.2,106.87785921]
[1748871833018,38.33785921,153.24,153.2,106.87785921]
[1748871833235,6.52539628,153.25,153.2,106.87785921]
[1748871833451,44.86364314,153.24,153.2,106.87785921]
[1748871833628,38.33785921,153.24,153.2,106.87785921]
[1748871833826,20.03550262,153.27,153.21,38.33785921]
[1748871833827,38.33785921,153.26,153.21,38.33785921]
[1748871834144,38.33785921,153.26,153.22,38.33785921]
[1748871834332,38.33785921,153.26,153.21,38.33785921]
[1748871834930,38.33785921,153.26,153.22,38.33785921]
[1748871835124,44.86282682,153.26,153.22,38.33785921]
[1748871835334,38.33785921,153.26,153.21,44.86461182]
[1748871836534,38.33785921,153.26,153.22,38.33785921]
[1748871837439,6.52458166,153.27,153.22,38.33785921]
[1748871837622,6.52458166,153.27,153.2,75.06726287]
[1748871837827,38.33785921,153.22,153.2,68.48]
[1748871838127,38.33785921,153.23,153.2,68.48]
[1748871838544,38.33785921,153.24,153.2,106.81785921]
[1748871838736,38.33785921,153.24,153.2,113.34523246]
[1748871839137,38.33785921,153.25,153.21,38.33785921]
[1748871839856,38.33785921,153.25,153.2,75.00737325]
[1748871839857,38.33785921,153.24,153.2,106.81785921]
[1748871840747,6.52532749,153.25,153.2,113.3451082]
[1748871840948,38.33785921,153.26,153.22,38.33785921]
[1748871841330,3.72291255,153.28,153.25,38.33785921]
[1748871841537,7.9401,153.39,153.28,18.64964886]
[1748871841538,4.65362961,153.33,153.28,18.64964886]
[1748871841732,38.33785921,153.33,153.29,26.0]
[1748871841943,38.33785921,153.33,153.3,11.88]
[1748871842147,3.71847219,153.36,153.3,54.36]
[1748871842346,38.33785921,153.35,153.3,92.69785921]
[1748871842653,38.33785921,153.34,153.3,92.69785921]
[1748871843154,38.33785921,153.35,153.3,92.69785921]
[1748871843529,38.33785921,153.34,153.3,99.22065572]
[1748871843934,38.33785921,153.33,153.3,54.36]
[1748871844134,38.33785921,153.31,153.28,6.52373817]
[1748871844546,38.33785921,153.33,153.28,44.86159738]
[1748871844730,38.33785921,153.33,153.28,87.32159738]
[1748871845359,38.33785921,153.33,153.29,38.33785921]
[1748871846162,38.33785921,153.33,153.3,6.5231572]
[1748871846557,38.33785921,153.34,153.3,6.5231572]
[1748871846848,38.33785921,153.34,153.3,44.86101641]
[1748871847051,38.33785921,153.35,153.3,44.86101641]
[1748871847246,3.71854797,153.36,153.33,38.33785921]
[1748871847445,38.33785921,153.38,153.34,38.33785921]
[1748871847653,43.64728274,153.39,153.35,38.33785921]
[1748871847846,148.9,153.4,153.34,42.46]
[1748871847847,148.9,153.4,153.37,38.33785921]
[1748871848156,148.9,153.4,153.36,38.33785921]
[1748871848964,14.49177562,153.43,153.36,38.33785921]
[1748871849260,14.49177562,153.43,153.37,42.46]
[1748871849577,7.974,153.43,153.37,80.79785921]
[1748871849750,38.33785921,153.41,153.37,80.79785921]
[1748871849951,38.33785921,153.4,153.37,42.46]
[1748871850141,7.974,153.43,153.37,80.79785921]
[1748871850458,7.974,153.43,153.37,87.31794374]
[1748871850459,38.33785921,153.42,153.37,87.31794374]
[1748871850659,14.49178954,153.43,153.37,87.31794374]
[1748871850864,1.6487,153.43,153.39,64.33785921]
[1748871851038,38.33785921,153.45,153.41,38.33785921]
[1748871851239,38.33785921,153.42,153.4,42.46]
[1748871851605,38.33785921,153.44,153.4,80.79785921]
[1748871851743,38.33785921,153.45,153.4,80.79785921]
[1748871851945,38.33785921,153.45,153.41,6.51847989]
[1748871852149,38.33785921,153.44,153.4,87.31664662]
[1748871852751,8.2146,153.47,153.4,87.31664662]
[1748871852752,38.33785921,153.42,153.4,42.46]
[1748871854658,38.33785921,153.45,153.41,38.33785921]
[1748871854840,38.33785921,153.42,153.39,37.88]
[1748871855039,38.33785921,153.42,153.39,80.32]
[1748871855258,38.33785921,153.42,153.39,37.88]
[1748871856046,47.05486795,153.5,153.39,37.88]
[1748871856047,1.6029,153.54,153.45,26.0]
[1748871856381,38.33785921,153.51,153.46,44.85421526]
[1748871856550,1.6029,153.54,153.49,38.33785921]
[1748871856887,1.6029,153.54,153.49,42.5]
[1748871857173,44.37495921,153.55,153.49,42.5]
[1748871857379,38.33785921,153.56,153.51,38.33785921]
[1748871857784,39.86945921,153.58,153.54,38.33785921]
[1748871857941,39.86945921,153.58,153.54,80.81785921]
[1748871858143,38.33785921,153.59,153.55,44.85039584]
[1748871858342,38.33785921,153.6,153.55,44.85039584]
[1748871858566,38.33785921,153.59,153.55,44.85039584]
[1748871858764,38.33785921,153.56,153.54,42.48]
[1748871858957,38.33785921,153.55,153.52,18.39372846]
[1748871859155,38.33785921,153.54,153.52,18.39372846]
[1748871859340,38.33785921,153.55,153.52,18.39376961]
[1748871859539,42.48,153.61,153.52,56.73162882]
[1748871859540,38.33785921,153.56,153.52,56.73162882]
[1748871859766,42.48,153.61,153.53,38.33785921]
[1748871859767,38.33785921,153.57,153.53,38.33785921]
[1748871860070,38.33785921,153.59,153.55,38.33785921]
[1748871860270,38.33785921,153.6,153.56,44.84997173]
[1748871860460,1.6506,153.62,153.56,6.51211252]
[1748871860657,39.98845921,153.62,153.57,38.33785921]
[1748871860969,1.6506,153.62,153.58,42.48]
[1748871861274,38.33785921,153.6,153.58,42.48]
[1748871861451,38.33785921,153.6,153.56,54.38]
[1748871861951,38.33785921,153.58,153.53,26.0]
[1748871862161,38.33785921,153.55,153.53,80.34]
[1748871862960,6.5109423,153.59,153.53,86.8533757]
[1748871863156,38.33785921,153.56,153.53,86.8533757]
[1748871863373,6.5109423,153.59,153.53,86.8533757]
[1748871863863,38.33785921,153.56,153.53,86.8533757]
[1748871864174,38.33785921,153.58,153.53,125.19123491]